Cogmind - Beta 15 @@@ ROGUE MODE // 2025.08.23 @ 17:15:22 Player: winnking222 Result: Self-destructed Performance ------------- Evolutions (2) 1000 Regions Visited (5) 1000 Robots Destroyed (24) 120 Value Destroyed (354) 354 Prototype IDs (23) 460 Alien Tech Used (0) 0 Bonus (307) 307 TOTAL SCORE: 3241 Bonus ------- Follower Combat Kills 7 Aligned with FarCom 300 Cogmind --------- Core Integrity 195/550 Matter 300/300 Energy 99/100 System Corruption 5% Temperature Cool (50) Movement Core (50) Location -8/Materials Parts ------- > --- POWER (1) -------- (None) > --- PROPULSION (4) --- Airjet > --- UTILITY (4) ------ Improved Targeting Computer > --- WEAPON (2) ------- Minigun > --- INVENTORY (5) ---- Improved Ion Engine Lightpack 2.0 High-capacity Matter Pod (200) Peak State ------------ > --- POWER ------------ Light Nuclear Core > --- PROPULSION ------- Aluminum Leg Aluminum Leg > --- UTILITY ---------- Large Storage Unit Seismic Detector Improved Targeting Computer > --- WEAPON ----------- Assault Rifle Assault Rifle > --- INVENTORY -------- Improved Ion Engine Improved Ion Engine Wheel Improved Heat Sink Lightpack 2.0 High-capacity Matter Pod Light Assault Rifle Light Assault Rifle Explosive Trap Explosive Trap Explosive Trap Explosive Trap [Rating: 15] Favorites ----------- Power Light Ion Engine Engine Light Ion Engine Power Core Light Nuclear Core Propulsion Aluminum Leg Leg Aluminum Leg Wheel Wheel Hover Unit Airjet Utility Seismic Detector Device Seismic Detector Storage Large Storage Unit Processor Improved Targeting Computer Weapon Assault Rifle Ballistic Gun Assault Rifle Build | -11 -10 -10 -10 -9 -8 ------- Run | Yrd Mat Min Exi Min Mat Slots Evolved 4 | . . . . . 4 Power . | . . . . . . Propulsion 2 | . . . . . 2 Utility 2 | . . . . . 2 Weapon . | . . . . . . Parts Attached 16 | 7 . . 1 1 7 Power 2 | 1 . . . 1 . Engine 1 | 1 . . . . . Core 1 | . . . . 1 . Reactor . | . . . . . . Propulsion 5 | 2 . . . . 3 Treads . | . . . . . . Leg 3 | 2 . . . . 1 Wheel 1 | . . . . . 1 Hover 1 | . . . . . 1 Flight . | . . . . . . Utility 4 | 2 . . 1 . 1 Device 1 | 1 . . . . . Storage 2 | 1 . . 1 . . Processor 1 | . . . . . 1 Hackware . | . . . . . . Protection . | . . . . . . Artifact . | . . . . . . Weapon 5 | 2 . . . . 3 Energy Gun . | . . . . . . Energy Cannon . | . . . . . . Ballistic Gun 5 | 2 . . . . 3 Ballistic Cannon . | . . . . . . Launcher . | . . . . . . Special Weapon . | . . . . . . Impact Weapon . | . . . . . . Slashing Weapon . | . . . . . . Piercing Weapon . | . . . . . . Special Melee Weapon . | . . . . . . Unidentified Prototypes . | . . . . . . Parts Lost 11 | . . . . 1 10 Power 2 | . . . . 1 1 Propulsion 4 | . . . . . 4 Utility 1 | . . . . . 1 Weapon 4 | . . . . . 4 Highest Loss Streak 7 | . . . . 1 7 To Critical Strikes . | . . . . . . Average Backups 6 | 4 5 6 5 7 5 Power . | . . 1 1 1 1 Propulsion 1 | 2 3 3 1 1 . Utility 2 | . . 1 1 3 2 Weapon 1 | 1 1 1 1 1 . Tool/Special . | . . . . . . Unused Backups 8 | . . . 2 1 5 Power 2 | . . . . . 2 Propulsion 2 | . . . 2 . . Utility 4 | . . . . 1 3 Weapon . | . . . . . . Tool/Special . | . . . . . . Average Slot Usage (%) 96 | . 100 100 100 99 51 Engine 7 | . 14 14 14 5 . Core 5 | . . . . 8 4 Leg 26 | . 28 28 28 28 11 Device 13 | . 14 14 14 14 6 Storage 13 | . 14 14 14 14 5 Ballistic Gun 27 | . 28 28 28 28 16 Peak Build Rating 15 | 7 8 8 10 13 15 Average Rating 10 | 5 7 8 9 11 11 On Entrance 7 | . 7 8 8 10 13 Naked Turns . | . . . . . . Heaviest Build 30 | 13 13 13 28 30 30 Greatest Support 20 | 20 20 20 20 20 20 Greatest Overweight (x) 2 | 1 . . 1 1 2 Average Overweight (x) . | . . . . 1 . Largest Inventory Capacity 15 | 8 8 8 15 15 15 Average Capacity 12 | 7 8 8 8 15 11 Most Carried 15 | 8 6 6 8 15 15 Average Carried 9 | 4 4 6 6 11 9 Final Capacity 15 | 8 8 8 15 15 5 Final Carried 15 | 4 6 6 8 15 5 Class Distribution -------------------- 100% | Mutant Dominant Class ---------------- Mutant | -10/Materials Mutant | -10/Mines Mutant | -10/Exiles Mutant | -9/Mines Mutant | -8/Materials Resources | -11 -10 -10 -10 -9 -8 ----------- Run | Yrd Mat Min Exi Min Mat Matter Collected 673 | 354 66 . . 164 89 Remotely . | . . . . . . Salvage Created 530 | 99 145 . . 200 86 Parts 52 | 15 14 . . 21 2 Haulers Intercepted . | . . . . . . Recyclers Shooed 1 | 1 . . . . . Parts Field Recycled . | . . . . . . Retrieved Matter . | . . . . . . Parts Self-Destructed . | . . . . . . Prevented . | . . . . . . Kills | -11 -10 -10 -10 -9 -8 ------- Run | Yrd Mat Min Exi Min Mat Combat Hostiles Destroyed 15 | . 2 . . 11 2 Guns 15 | . 2 . . 11 2 Classes Destroyed 6 | 1 4 . . 1 . Worker 2 | . 1 . . 1 . Tunneler 5 | 5 . . . . . Operator 1 | . 1 . . . . Watcher 1 | . 1 . . . . Swarmer 11 | . . . . 11 . Grunt 4 | . 2 . . . 2 Best Kill Streak 4 | 4 4 . . 4 2 Combat Bots Only 4 | . 2 . . 4 2 Max Kills in Single Turn 2 | 1 1 . . 2 1 Gunslinging 1 | . . . . 1 . Exploded . | . . . . . . Melee . | . . . . . . Uniques/NPCs Destroyed . | . . . . . . Combat | -11 -10 -10 -10 -9 -8 -------- Run | Yrd Mat Min Exi Min Mat Hostile Shots Fired 141 | . 4 7 . 40 90 Missed 37 | . 1 4 . 7 25 Hits 104 | . 3 3 . 33 65 Projectile 104 | . 3 3 . 33 65 Critical Strikes 5 | . 1 . . . 4 Damage Taken 1302 | . 41 24 . 258 979 Core 381 | . . . . 26 355 Absorbed by Shields . | . . . . . . Core Remaining (%) 94 | 100 . . . 89 . Volleys Fired 71 | 14 11 . . 24 22 Largest 2 | 2 2 . . 2 2 Hottest 40 | 40 40 . . 40 40 Shots Fired 138 | 28 22 . . 48 40 Gun 138 | 28 22 . . 48 40 Cannon . | . . . . . . Launcher . | . . . . . . Special . | . . . . . . Kinetic 138 | 28 22 . . 48 40 Thermal . | . . . . . . Explosive . | . . . . . . Electromagnetic . | . . . . . . Robot Hit Streak 8 | 4 8 . . 4 6 Robot Miss Streak 4 | 4 2 . . 3 2 Penetration Max . | . . . . . . Secondary Targets 3 | . 1 . . 1 1 Max Gunslinging Chain 1 | . 1 . . 1 1 Shots Hit Robots 77 | 11 10 . . 27 29 Core Hits 33 | 6 7 . . 13 7 Critical Kills . | . . . . . . Critical Parts Destroyed . | . . . . . . Critical Strikes . | . . . . . . Melee Attacks . | . . . . . . Impact . | . . . . . . Slashing . | . . . . . . Piercing . | . . . . . . Sneak Attacks . | . . . . . . Combat Hostiles . | . . . . . . Follow-up Attacks . | . . . . . . Damage Inflicted 888 | 140 117 . . 365 266 Guns 870 | 140 117 . . 347 266 Cannons . | . . . . . . Explosions . | . . . . . . Melee . | . . . . . . Ramming 18 | . . . . 18 . Kinetic 870 | 140 117 . . 347 266 Thermal . | . . . . . . Explosive . | . . . . . . Electromagnetic . | . . . . . . Impact . | . . . . . . Slashing . | . . . . . . Piercing . | . . . . . . Highest Corruption 3 | . . . . . 3 Average Corruption 1 | . . . . . 1 Corruption Purged . | . . . . . . Corruption Blocked . | . . . . . . Effects 1 | . . . . . 1 Heat Flow Errors 1 | . . . . . 1 Overload Shots . | . . . . . . Overflow Damage . | . . . . . . Projectiles . | . . . . . . Explosions . | . . . . . . Melee . | . . . . . . Knockbacks . | . . . . . . Impact . | . . . . . . Kinetic . | . . . . . . Secondary . | . . . . . . Self-Inflicted Damage . | . . . . . . Shots . | . . . . . . Rammed . | . . . . . . Targets Rammed 5 | . . . . 5 . Kicked 5 | . . . . 5 . Crushed . | . . . . . . Highest Temperature 81 | 6 20 . . . 81 Average Temperature 13 | 6 11 . . . 14 Received Heat Transfer 645 | . 42 . . . 603 Siege Activations . | . . . . . . Martial Activations . | . . . . . . Shielding Activations . | . . . . . . Robots Disrupted . | . . . . . . Combat Hostiles . | . . . . . . Robots Corrupted . | . . . . . . Combat Hostiles . | . . . . . . Parts Fried . | . . . . . . Impact Corruptions . | . . . . . . Robots Melted . | . . . . . . Combat Hostiles . | . . . . . . Parts Melted . | . . . . . . Heat Transferred . | . . . . . . Parts Sabotaged . | . . . . . . Parts Stolen . | . . . . . . Parts Stripped . | . . . . . . Power Chain Reactions . | . . . . . . Alert | -11 -10 -10 -10 -9 -8 ------- Run | Yrd Mat Min Exi Min Mat Maximum Alert Level . | . . . . . . Low Security (%) 100 | 100 100 100 . 100 100 Level 1 . | . . . . . . Level 2 . | . . . . . . Level 3 . | . . . . . . Level 4 . | . . . . . . Level 5 . | . . . . . . High Security . | . . . . . . Max Security . | . . . . . . Peak Influence 126 | 5 52 20 . 126 40 Initial . | . . . . . . Average 21 | . 20 8 . 25 6 Influence Increases 502 | 25 67 30 . 270 110 Destroy 0b10 Robot/C 320 | . 40 . . 220 60 Destroy 0b10 Robot/NC 45 | 25 15 . . 5 . Destroy Leader 42 | . 12 . . 30 . Allied During Kill 1 | . . . . . 1 Trap Triggered on 0b10 10 | . . . . . 10 Successful Hack 9 | . . . . . 9 Partial Spotted 15 | . . 15 . . . Lose Combat Pursuer 60 | . . 15 . 15 30 Influence Decreases 502 | 25 65 32 . 270 110 Entered New Map 2 | . . 2 . . . Time Decay 420 | 25 65 30 . 260 40 Lost Part 70 | . . . . 10 60 Lost Ally 10 | . . . . . 10 Squads Dispatched 3 | . 1 . . . 2 Investigation . | . . . . . . Extermination . | . . . . . . Reinforcement 3 | . 1 . . . 2 Assault . | . . . . . . Garrison . | . . . . . . Intercept . | . . . . . . Searches Triggered . | . . . . . . Construction Impeded . | . . . . . . Haulers Reinforced . | . . . . . . Active Scanning Responses . | . . . . . . Cargo Convoy Interrupts . | . . . . . . Stealth | -11 -10 -10 -10 -9 -8 --------- Run | Yrd Mat Min Exi Min Mat Distress Signals 3 | . 2 . . . 1 Communications Jammed . | . . . . . . Distress Signals . | . . . . . . Times Spotted 33 | . 5 5 . 12 11 Peak Tracking Total 6 | . 4 4 . 4 6 Tactical Retreats 3 | . . 1 . 1 1 Traps | -11 -10 -10 -10 -9 -8 ------- Run | Yrd Mat Min Exi Min Mat Traps Triggered 3 | . . . . . 3 Indirectly . | . . . . . . Trap Hack Attempts . | . . . . . . Triggered . | . . . . . . Disarmed . | . . . . . . Reprogrammed . | . . . . . . Reused 1 | . . . . . 1 Traps Extracted . | . . . . . . Installed 4 | . . . . . 4 Triggered 1 | . . . . . 1 Most Traps Carried 4 | . . . . 4 4 Machines | -11 -10 -10 -10 -9 -8 ---------- Run | Yrd Mat Min Exi Min Mat Machines Disabled . | . . . . . . Max in Single Turn . | . . . . . . Machines Repaired . | . . . . . . Machines Dismantled . | . . . . . . Machines Sabotaged . | . . . . . . Overloaded Fab Kills . | . . . . . . Hacking | -11 -10 -10 -10 -9 -8 --------- Run | Yrd Mat Min Exi Min Mat Machines Accessed 4 | . 1 . 2 . 1 Terminals 2 | . 1 . . . 1 Fabricators . | . . . . . . Repair Stations . | . . . . . . Recycling Units . | . . . . . . Scanalyzers . | . . . . . . Garrison Access . | . . . . . . Total Hacks 8 | . 4 . 2 . 2 Successful 4 | . . . 2 . 2 Failed 4 | . 4 . . . . Catastrophic . | . . . . . . Database Lockouts . | . . . . . . Manual 7 | . 4 . 1 . 2 Terminals 6 | . 4 . . . 2 Fabricators . | . . . . . . Repair Stations . | . . . . . . Recycling Units . | . . . . . . Scanalyzers . | . . . . . . Garrison Access . | . . . . . . Terminal Hacks 2 | . . . 2 . . Record 1 | . . . 1 . . Proto ID Catalog 1 | . . . 1 . . Fabricator Hacks . | . . . . . . Repair Station Hacks . | . . . . . . Recycling Unit Hacks . | . . . . . . Scanalyzer . | . . . . . . Garrison Access Hacks . | . . . . . . Unauthorized Hacks 2 | . . . . . 2 Terminals 2 | . . . . . 2 Botnet 1 | . . . . . 1 Skim 1 | . . . . . 1 Fabricators . | . . . . . . Repair Stations . | . . . . . . Recycling Units . | . . . . . . Scanalyzers . | . . . . . . Garrison Access . | . . . . . . Data Cores Recovered 1 | . 1 . . . . Used 1 | . 1 . . . . Hacking Detections 2 | . 1 . . . 1 Full Trace Events . | . . . . . . Feedback Events . | . . . . . . Feedback Blocked . | . . . . . . Robot Schematics Acquired . | . . . . . . Robots Built . | . . . . . . Authchips . | . . . . . . Time . | . . . . . . Total Robot Build Rating . | . . . . . . Part Schematics Acquired . | . . . . . . Parts Built . | . . . . . . Authchips . | . . . . . . Time . | . . . . . . Total Part Build Rating . | . . . . . . Parts Repaired . | . . . . . . Time . | . . . . . . Parts Recycled . | . . . . . . Recycled Matter . | . . . . . . Retrieved Matter . | . . . . . . Retrieved Components . | . . . . . . Parts Scanalyzed . | . . . . . . Part Schematics Acquired . | . . . . . . Parts Damaged . | . . . . . . Bothacking | -11 -10 -10 -10 -9 -8 ------------ Run | Yrd Mat Min Exi Min Mat Used RIF Installer . | . . . . . . Robots Hacked . | . . . . . . Non-combat . | . . . . . . Combat . | . . . . . . Robot Hacks Applied . | . . . . . . Relay Couplers Released . | . . . . . . Fabnet Peak Effective % . | . . . . . . Robots Rewired . | . . . . . . Allies Hacked . | . . . . . . Hacks Repelled . | . . . . . . Allies | -11 -10 -10 -10 -9 -8 -------- Run | Yrd Mat Min Exi Min Mat Total Allies 2 | . . . . 2 . Largest Group 2 | . . . . 2 2 Highest-Rated Group 41 | . . . . 41 41 Highest-Rated Ally 31 | . . . . 31 31 Total Orders . | . . . . . . Ally Attacks 14 | . . . . . 14 Total Damage 104 | . . . . . 104 Kills 1 | . . . . . 1 Allies Corrupted . | . . . . . . Allies Melted . | . . . . . . Intel | -11 -10 -10 -10 -9 -8 ------- Run | Yrd Mat Min Exi Min Mat Active Infowar (turns) 2432 | 19 164 88 411 1619 131 Seismic 2432 | 19 164 88 411 1619 131 Robot Analysis Total . | . . . . . . Derelict Logs Recovered 2 | . . 1 . 1 . Drone Launches . | . . . . . . Drone Recoveries . | . . . . . . Exploration | -11 -10 -10 -10 -9 -8 ------------- Run | Yrd Mat Min Exi Min Mat Turns Passed 2633 | 156 164 88 411 1619 195 Spaces Moved 1375 | 91 108 53 323 706 94 Core 55 | 24 . . . . 31 Treads . | . . . . . . Legs 1307 | 67 108 53 323 706 50 Wheels 13 | . . . . . 13 Hover . | . . . . . . Flight . | . . . . . . Fastest Speed 50 | 50 120 120 120 190 50 Average Speed 156 | 106 120 120 126 190 125 Slowest Speed 260 | 120 120 120 190 190 260 Overloaded Moves . | . . . . . . Propulsion Burnouts . | . . . . . . Robots Hopped . | . . . . . . Potential Cave-ins . | . . . . . . Cave-ins Triggered . | . . . . . . Exploration Rate (%) 39 | 4 24 18 76 102 12 Regions Visited 5 Branch Regions 3 Pre-discovered Areas 2 | . . . 1 1 . Known Exits Taken 1 | . . . 1 . . Unknown Exits Taken 4 | 1 1 1 . 1 . Scrap Searched 2 | . . . . 2 . Spaces Dug . | . . . . . . Terrain Destroyed . | . . . . . . Melee . | . . . . . . Projectile . | . . . . . . AOE . | . . . . . . Terrain Rammed . | . . . . . . Walls Destroyed . | . . . . . . Machines Disabled . | . . . . . . Actions | -11 -10 -10 -10 -9 -8 --------- Run | Yrd Mat Min Exi Min Mat Total 1716 | 121 120 77 328 932 138 Wait 217 | . . 25 . 187 5 Move 1370 | 90 107 52 322 705 94 Hop . | . . . . . . Pick Up 24 | 10 2 . 2 9 1 Fast Attach 3 | 1 . . . . 2 Attach 12 | 6 . . . 1 5 Detach . | . . . . . . Swap 1 | . . . 1 . . Drop 9 | . . . 3 1 5 Fire 71 | 14 11 . . 24 22 Melee . | . . . . . . Ram . | . . . . . . Kick 5 | . . . . 5 . Crush . | . . . . . . Escape Stasis . | . . . . . . Rewire . | . . . . . . Trap 4 | . . . . . 4 Miscellaneous . | . . . . . . Route ------- -11/Scrapyard -10/Materials -10/Mines (discovered 2 exits: [*Mat] / *Exi) -10/Exiles (discovered 2 exits: *Min x2) -9/Mines (discovered 2 exits: *Mat x2) -8/Materials (discovered 1 exit: Sto) History --------- Turn | Location | Event 21 | -11/Scrapyard | Discovered new exit (range 16) 157 | -11/Scrapyard | Entered Materials 279 | -10/Materials | Discovered new exit (range 6) 293 | -10/Materials | Met 8R-AWN 311 | -10/Materials | Build established: Mutant 321 | -10/Materials | Entered Mines 323 | -10/Mines | Followed 8R-AWN into the Mines 363 | -10/Mines | Met a Derelict bent on vengeance 364 | -10/Mines | Discovered new exit (range 8) 404 | -10/Mines | Discovered new exit (range 5) 409 | -10/Mines | Entered Exiles 410 | -10/Exiles | Identified exit to Mines 443 | -10/Exiles | Welcomed by 8R-AWN 459 | -10/Exiles | Met EX-HEX 496 | -10/Exiles | Met EX-BIN 509 | -10/Exiles | Aligned with FarCom system 510 | -10/Exiles | Given EX-Vault access code 538 | -10/Exiles | Opened EX-Vault 546 | -10/Exiles | Found Lightpack 2.0 571 | -10/Exiles | Warned to stay clear of 0b10 Research branches 605 | -10/Exiles | Met EX-DEC 609 | -10/Exiles | Learned location of Zion (-6) 663 | -10/Exiles | Visited The Gauntlet 820 | -10/Exiles | Left Exiles lab with Lightpack 2.0 820 | -10/Exiles | Entered Mines 925 | -9/Mines | Discovered new exit (range 5) 1053 | -9/Mines | Discovered new exit (range 8) 1079 | -9/Mines | Learned location of Storage (-8) 1593 | -9/Mines | Found a hidden stash of uninstalled traps 1918 | -9/Mines | Joined a pair of Derelicts in attacking an 0b10 outpost 2439 | -9/Mines | Entered Materials 2439 | -8/Materials | Accompanied by 2 allies 2439 | -8/Materials | Evolved 4 slots: Propulsion x2, Utility x2 2440 | -8/Materials | Identified exit to Storage 2444 | -8/Materials | Led the pair of lost Derelicts to an unsafe place 2601 | -8/Materials | Lost 7 parts (1p3n1u2w) 2613 | -8/Materials | Core integrity fell below 50% 2634 | -8/Materials | Self-destructed Last Messages --------------- 02585_ T-07 Excavator is excavating. 02603_ Electrolysis Chamber disabled. 02607_ Lgt. Assault Rifle destroyed. 02609_ Critical hit (Burn: +37). 02615_ Aluminum Leg destroyed. 02622_ Acquired Airjet. 02624_ Lgt. Assault Rifle destroyed. 02624_ Critical hit (Burn: +37). 02625_ Triggered Shock Trap. 02625_ The floor emits a surge of raw power. 02625_ System corrupted (+1). 02628_ Acquired Minigun. 02631_ Acquired 22 matter. 02632_ System corrupted: Heat flow error (+112). 02633_ Triggered Shock Trap. 02633_ The floor emits a surge of raw power. 02633_ System corrupted (+2). 02634_ Triggered Shock Trap. 02634_ The floor emits a surge of raw power. 02634_ System corrupted (+2). Map ----- +----------------------------------------------------+ | ??????????????????# ^ ^ #??????? | | ??????????????????# !! #######??????? | | ??????????????????# * #????????????? | | ??????????????????# #????????????? | | ??????????????????# [ ""#???########## | | ??????????????????# ""#???# # | | ??????????????????# T"#???# """ [# | | ??????????????????#! ""#???# """ # | | ??????????????????# ""#???# " # | | ??????????????????# #???# # | | ??????? ## ########+###### "" # | | ??????? w # S"" # | | ??????? # "" # | | ??????? ########## #### / # | | ????????????????????#+???# #####+#### | | ?????????????Y???????????#[ ##?? | | ?????????????????????????# "#?? | | ?????????????????????????# T#?? | | ?????????????????????????+ !!! "#?? | | ?????????????????????????# !! ##?? | | ?????????????????????????# g !! #?? | | ?????????????????????????# g #?? | | ?????????????????????????# #?? | | ???????????????????????#####g## #?? | | ???????????????????????# # #?? | | ???????????????????????# @""" # #?? | | ???????????????????????# """ # #?? | | ???????????????????????# """ # #?? | | ???????????????????????# # #?? | | ???????????????????????#% ! ######?? | | ???????????????????????########??????? | | ?????????????????????????????????????? | | ?????????????????????????????????????? | | ?????????????????????????????????????? | | ?????????????????????????????????????? | | ?????????????????????????????????????? | | ?????????????????????????????????????? | | ?????????????????????????????????????? | | ?????????????????????????????????????? | | ?????????????????????????????????????? | | ?????????????????????????????????????? | | ?????????????????????????????????????? | | ?????????????????????????????????????? | | | | | | | | | | | | | | | +----------------------------------------------------+ Best States ------------- Heat Dissipation 31 Energy Generation 14 Energy Capacity 160 Matter Stores 300 Matter Capacity 300 Sight Range 16 Terrain Scan Density 10 Evasion (%) 55 Targeting Accuracy 6 Item Schematics ----------------- None Robot Schematics ------------------ None Fabricated ------------ Nothing Repaired ---------- Nothing Alien Tech Used ----------------- None Achievements -------------- None Challenges ------------ None Game ------ Seed PartitionScatterTreads Manual? 0 Play Time 00:14:20 Cumulative 147.8 hours Start 2025.08.23 @ 17:03:08 End 2025.08.23 @ 17:15:22 Sessions 1 Manual Loads 0 Difficulty Rogue Special Mode None Game No. 207 Rogue 207 Adventurer 0 Explorer 0 Win Type - Total 1 Types 1/0/0/0/0/0/0/0/0/0 Lore% 70 Gallery% 64 Achievement% 54 Wizard Run 0 Options --------- Layout 0 ASCII 0 Keyboard 0 Movement Mouse Keybinds 0 Fullscreen 1 Font 16/SmallcapsGlow Map View 75x55 Zoom Use 0% Tactical HUD 1 Map Filters NONE Filters NONE Steam 1 RUN: 4d293206-0a39-48e7-bdfc-96640eb07646